bitfinex-derivatives/quotes_SOLF0:USTF0_20250730
["timestamp","ask_amount","ask_price","bid_price","bid_amount"]
[1753855735467,3.2,181.33,181.3,5.5164]
[1753855737672,3.2,181.32,181.29,10.92511581]
[1753855737874,3.2,181.32,181.29,8.2068]
[1753855740270,3.2,181.32,181.3,8.2065]
[1753855740573,3.2,181.32,181.27,120.77831581]
[1753855740574,3.2,181.32,181.29,2.71831581]
[1753855740776,3.2,181.32,181.31,5.516]
[1753855741072,3.2,181.33,181.31,2.69]
[1753855741473,3.2,181.33,181.32,2.69]
[1753855742276,3.2,181.33,181.32,8.2057]
[1753855743076,3.2,181.38,181.32,2.69]
[1753855743280,3.2,181.36,181.32,2.69]
[1753855743480,3.2,181.36,181.33,5.5155]
[1753855744577,3.2,181.36,181.32,2.69]
[1753855744578,3.2,181.36,181.34,5.5153]
[1753855745372,2.71831581,181.37,181.29,2.71831581]
[1753855745580,3.2,181.35,181.29,5.40831581]
[1753855745972,5.5156,181.34,181.3,5.5165]
[1753855746171,3.2,181.33,181.3,5.5165]
[1753855746472,3.2,181.33,181.28,2.69]
[1753855746673,3.2,181.33,181.3,5.5164]
[1753855746872,3.2,181.33,181.3,8.2064]
[1753855747576,3.2,181.33,181.31,2.69]
[1753855747978,3.2,181.33,181.31,8.2063]
[1753855748278,5.5151,181.35,181.31,8.2063]
[1753855748479,3.2,181.32,181.31,8.2063]
[1753855751279,5.5151,181.35,181.31,5.5163]
[1753855751475,3.2,181.33,181.32,8.2059]
[1753855751780,8.86848054,181.44,181.32,8.2059]
[1753855751781,3.2,181.34,181.32,2.69]
[1753855751968,3.2,181.34,181.33,5.5156]
[1753855752173,3.2,181.34,181.33,8.2056]
[1753855752780,3.2,181.35,181.34,5.5153]
[1753855752979,2.71831581,181.39,181.34,5.5153]
[1753855752980,3.2,181.4,181.34,2.69]
[1753855753280,3.2,181.38,181.34,2.69]
[1753855754279,3.2,181.38,181.34,8.2053]
[1753855754575,3.2,181.38,181.34,5.5153]
[1753855755283,5.5145,181.37,181.34,5.5153]
[1753855755470,2.71831581,181.41,181.33,5.40831581]
[1753855755471,3.2,181.36,181.33,5.5156]
[1753855756274,3.2,181.34,181.31,2.71831581]
[1753855756481,3.2,181.34,181.3,2.69]
[1753855756971,3.2,181.33,181.31,5.5161]
[1753855757375,3.2,181.33,181.3,2.69]
[1753855757583,3.2,181.33,181.31,5.5163]
[1753855758278,3.2,181.33,181.32,5.516]
[1753855758585,3.2,181.34,181.33,2.69]
[1753855759778,3.2,181.34,181.32,5.516]
[1753855760184,3.2,181.34,181.31,5.5162]
[1753855760687,3.2,181.34,181.29,2.71831581]
[1753855760984,3.2,181.34,181.29,5.40831581]
[1753855761482,5.5159,181.33,181.29,10.92511581]
[1753855761679,3.08,181.32,181.29,8.2068]
[1753855762078,8.596,181.32,181.29,8.2068]
[1753855762279,3.08,181.31,181.29,8.2068]
[1753855762584,3.08,181.31,181.3,5.5166]
[1753855764588,3.08,181.31,181.3,8.2066]
[1753855766892,3.08,181.31,181.29,5.5168]
[1753855767093,3.08,181.31,181.29,8.2068]
[1753855767691,2.71831581,181.37,181.29,8.2068]
[1753855767892,3.08,181.3,181.29,8.2068]
[1753855770095,3.08,181.3,181.28,2.71831581]
[1753855770295,3.08,181.32,181.27,118.06]
[1753855770600,5.5171,181.29,181.27,118.06]
[1753855770799,3.08,181.28,181.27,118.06]
[1753855771200,8.5972,181.28,181.27,118.06]
[1753855774101,3.08,181.28,181.27,118.06]
[1753855775103,8.5972,181.28,181.27,118.06]
[1753855775800,3.08,181.28,181.27,118.06]
[1753855775998,3.08,181.28,181.27,120.75]
[1753855779404,3.08,181.28,181.27,126.2675]
[1753855780201,5.5163,181.32,181.29,8.2067]
[1753855780396,3.08,181.3,181.29,5.5167]
[1753855780996,3.08,181.3,181.29,2.69]
[1753855781196,3.08,181.3,181.28,2.69]
[1753855782807,3.08,181.29,181.28,2.69]
[1753855783795,3.08,181.29,181.27,120.75]
[1753855783997,5.5169,181.29,181.27,118.06]
[1753855784203,3.08,181.28,181.27,118.06]
[1753855785905,8.5972,181.28,181.27,118.06]
[1753855791114,3.08,181.28,181.23,2.69]
[1753855791308,3.19,181.26,181.23,118.0]
[1753855791615,5.5184,181.24,181.23,118.0]
[1753855791810,8.7084,181.24,181.23,118.0]
[1753855795513,8.7084,181.24,181.23,120.69]
[1753855798118,8.7084,181.24,181.23,118.0]
[1753855799319,3.19,181.23,181.21,2.69]
[1753855800027,2.71831581,181.25,181.21,2.69]
[1753855800321,3.19,181.24,181.2,118.0]
[1753855801018,3.19,181.21,181.2,118.0]
[1753855801210,3.19,181.24,181.21,2.69]
[1753855801410,5.5189,181.23,181.21,2.69]
[1753855801812,3.19,181.22,181.21,2.69]
[1753855802219,8.7091,181.22,181.2,123.5195]
[1753855802423,3.19,181.21,181.2,126.2095]
[1753855802830,3.19,181.23,181.22,2.69]
[1753855803325,8.7087,181.23,181.22,2.69]
[1753855805125,3.19,181.23,181.22,2.69]
[1753855805623,3.19,181.23,181.21,2.69]
[1753855806025,3.19,181.23,181.2,118.0]
[1753855806225,3.19,181.22,181.2,126.2092]
[1753855806923,3.19,181.22,181.21,5.519]
[1753855807228,3.19,181.22,181.21,8.209]
[1753855808130,3.19,181.22,181.21,2.69]
[1753855808626,3.19,181.22,181.2,118.0]
[1753855808831,3.19,181.25,181.21,2.69]
[1753855809028,5.5181,181.24,181.22,2.69]
[1753855809232,2.71831581,181.26,181.22,2.69]
[1753855809233,3.19,181.23,181.22,2.69]
[1753855809728,3.19,181.22,181.21,8.2088]
[1753855809929,3.19,181.22,181.2,123.5192]
[1753855810129,3.19,181.22,181.2,126.2092]
[1753855810527,3.19,181.23,181.21,5.519]
[1753855810730,3.19,181.23,181.21,8.209]
[1753855811527,3.19,181.22,181.21,8.209]
[1753855812233,3.19,181.24,181.23,2.69]
[1753855812627,3.19,181.24,181.22,5.5185]
[1753855812927,3.19,181.24,181.22,8.2085]
[1753855813132,5.5178,181.25,181.22,8.2085]
[1753855813432,3.19,181.23,181.22,8.2085]
[1753855813634,3.19,181.23,181.22,2.69]
[1753855814133,3.19,181.23,181.21,8.2088]
[1753855814622,3.19,181.24,181.22,8.2086]
[1753855818938,5.5178,181.25,181.22,8.2086]
[1753855819236,3.19,181.23,181.22,8.2086]
[1753855819938,3.19,181.23,181.22,2.69]
[1753855820638,3.19,181.23,181.21,8.2088]
[1753855821337,5.5183,181.23,181.2,120.7]
[1753855821538,2.97,181.22,181.2,118.0]
[1753855821935,2.97,181.21,181.2,120.7]
[1753855822130,2.97,181.23,181.21,2.7]
[1753855822739,2.97,181.22,181.21,2.7]
[1753855822939,2.97,181.22,181.2,118.0]
[1753855823239,2.97,181.21,181.2,118.0]
[1753855824941,8.4889,181.21,181.2,118.0]
[1753855825839,2.97,181.21,181.2,120.7]
[1753855827435,2.97,181.21,181.2,118.0]
[1753855827637,8.4889,181.21,181.2,118.0]
[1753855828641,2.97,181.21,181.2,118.0]
[1753855829841,2.97,181.21,181.2,120.7]
[1753855830437,2.97,181.21,181.2,2.7]
[1753855830636,2.97,181.21,181.18,7.25737905]
[1753855830842,2.97,181.21,181.19,2.7]
[1753855831436,2.97,181.21,181.2,2.7]
[1753855832943,2.97,181.21,181.2,120.64]
[1753855837443,5.5184,181.23,181.21,2.7]
[1753855837444,2.97,181.23,181.21,2.7]
[1753855837645,2.97,181.23,181.21,1.73757905]
[1753855837845,2.97,181.23,181.22,2.7]
[1753855838951,2.97,181.23,181.21,8.2189]
[1753855840242,2.97,181.22,181.21,5.5189]
[1753855840644,2.97,181.22,181.21,8.2189]
[1753855841350,2.97,181.26,181.21,2.7]
[1753855841552,4.63583736,181.31,181.26,2.7]
[1753855841852,4.03016695,181.3,181.27,117.92]
[1753855842045,4.63583736,181.32,181.17,20.106541]
[1753855842046,6.37341641,181.34,181.29,4.43757905]
[1753855842246,2.97,181.31,181.3,2.7]
[1753855842444,6.98057898,181.31,181.3,2.7]
[1753855842647,6.98057898,181.31,181.29,119.65757905]
[1753855842648,6.98057898,181.31,181.29,125.17397905]
[1753855842950,6.98057898,181.3,181.29,127.87397905]
[1753855844052,4.01057898,181.3,181.29,127.87397905]
[1753855844251,2.97,181.32,181.3,5.516]
[1753855844551,2.97,181.32,181.31,2.7]
[1753855844744,2.97,181.32,181.29,126.1364]
[1753855846452,2.97,181.32,181.3,2.7]
[1753855847451,2.97,181.31,181.29,120.62]
[1753855848659,2.97,181.31,181.29,126.1364]
[1753855848958,5.5154,181.33,181.29,126.1364]
[1753855849257,2.97,181.3,181.29,126.1364]
[1753855851151,5.515,181.34,181.3,5.5162]
[1753855851346,5.515,181.34,181.3,8.2162]
[1753855851347,2.97,181.31,181.3,8.2162]
[1753855853960,2.97,181.31,181.3,5.5162]
[1753855854167,2.97,181.31,181.29,123.4365]
[1753855854661,2.97,181.31,181.29,126.1265]
[1753855856062,3.17,181.3,181.29,126.1265]
[1753855857556,5.5147,181.35,181.31,5.5158]
[1753855857752,5.5147,181.35,181.32,117.82]
[1753855858462,3.17,181.34,181.32,117.82]
[1753855866073,8.6851,181.34,181.32,117.82]
[1753855866276,3.17,181.36,181.32,117.82]
[1753855866574,5.515,181.35,181.32,117.82]
[1753855866764,3.17,181.34,181.32,117.82]
[1753855867169,3.17,181.34,181.32,125.07064617]
[1753855867375,3.17,181.35,181.34,2.69]
[1753855867672,1.73524617,181.39,181.35,2.69]
[1753855867866,3.17,181.38,181.35,122.20524617]
[1753855868064,5.5141,181.37,181.35,122.20524617]
[1753855868369,3.17,181.36,181.35,122.20524617]
[1753855869777,3.17,181.38,181.37,5.5141]
[1753855869981,3.17,181.38,181.37,9.93934617]
[1753855870680,3.17,181.38,181.37,8.2041]
[1753855870978,3.17,181.38,181.37,9.93934617]
[1753855872281,3.17,181.38,181.37,4.42524617]
[1753855872479,3.17,181.38,181.37,1.73524617]
[1753855872680,3.17,181.38,181.36,9.93954617]
[1753855874073,3.17,181.38,181.36,4.42524617]
[1753855874576,8.6838,181.38,181.36,4.42524617]
[1753855874769,3.17,181.37,181.36,4.42524617]
[1753855876376,3.17,181.37,181.34,1.73524617]
[1753855876583,3.17,181.36,181.34,117.74]
[1753855877278,3.17,181.36,181.34,120.43]
[1753855877779,3.17,181.36,181.34,117.74]
[1753855878373,3.17,181.35,181.34,117.74]
[1753855878779,3.17,181.35,181.34,119.47524617]
[1753855879080,3.17,181.35,181.34,117.74]
[1753855879873,3.17,181.35,181.34,125.945]
[1753855882383,3.17,181.35,181.34,123.255]
[1753855883581,3.17,181.35,181.34,117.74]
[1753855884182,3.17,181.35,181.34,123.255]
[1753855884693,2.99,181.37,181.35,2.69]
[1753855884884,2.99,181.37,181.36,4.42524617]
[1753855885389,2.99,181.37,181.36,9.93964617]
[1753855885590,2.99,181.37,181.36,8.2044]
[1753855885884,2.99,181.37,181.35,5.5146]
[1753855886084,2.99,181.36,181.34,117.74]
[1753855887292,8.5044,181.36,181.34,117.74]
[1753855887491,5.5144,181.36,181.34,117.74]
[1753855887681,2.99,181.35,181.34,117.74]
[1753855888392,2.99,181.34,181.31,5.5158]
[1753855888690,2.99,181.34,181.32,117.7]
[1753855889485,2.99,181.41,181.33,2.69]
[1753855889683,1.73524617,181.38,181.35,2.69]
[1753855889893,2.99,181.36,181.35,2.69]
[1753855890592,2.99,181.36,181.34,5.5148]
[1753855890795,2.99,181.36,181.34,2.69]
[1753855891183,2.99,181.37,181.34,8.2049]
[1753855892391,8.5042,181.37,181.34,2.69]
[1753855892592,2.99,181.36,181.34,2.69]
[1753855893886,5.5144,181.36,181.33,4.42524617]
[1753855894087,4.63583736,181.43,181.32,119.43524617]
[1753855894293,2.99,181.33,181.32,122.12524617]
[1753855894787,1.73524617,181.36,181.33,5.5151]
[1753855894990,2.99,181.34,181.33,9.94034617]
[1753855895185,7.24934617,181.37,181.33,4.42524617]
[1753855895387,2.99,181.35,181.34,2.69]
[1753855896192,2.99,181.35,181.33,9.94054617]
[1753855896494,2.99,181.35,181.33,8.2053]
[1753855896897,2.99,181.35,181.33,5.5153]
[1753855897089,8.5049,181.35,181.32,122.12524617]
[1753855897396,2.99,181.34,181.32,117.7]
[1753855898697,1.73524617,181.37,181.33,2.69]
[1753855898898,2.99,181.35,181.33,2.69]
[1753855899195,2.99,181.35,181.33,5.5153]
[1753855899394,2.99,181.35,181.33,4.42524617]
[1753855900001,2.99,181.35,181.34,2.69]
[1753855900298,2.99,181.35,181.34,8.205]
[1753855902400,2.99,181.35,181.33,7.25044617]
[1753855902699,2.99,181.35,181.33,9.94044617]
[1753855903097,2.99,181.35,181.33,7.25044617]
[1753855903790,2.99,181.35,181.33,9.94044617]
[1753855906099,5.5144,181.36,181.33,9.94044617]
[1753855906303,2.99,181.34,181.33,9.94044617]
[1753855907198,5.5144,181.36,181.33,7.25044617]
[1753855907400,2.99,181.34,181.33,2.69]
[1753855907703,5.5148,181.35,181.33,2.69]
[1753855907904,2.99,181.34,181.33,2.69]
[1753855908102,2.99,181.34,181.33,8.2053]
[1753855908302,2.99,181.35,181.33,2.69]
[1753855908700,2.99,181.37,181.34,4.42524617]
[1753855908904,2.99,181.37,181.35,2.69]
[1753855909402,2.99,181.37,181.36,2.69]
[1753855909602,2.99,181.4,181.32,117.68]
[1753855909802,2.99,181.4,181.36,4.42524617]
[1753855910104,2.99,181.4,181.36,122.08524617]
[1753855910307,5.5135,181.39,181.36,127.59954617]
[1753855910506,2.99,181.38,181.36,127.59954617]
[1753855911599,2.99,181.38,181.36,125.8643]
[1753855912306,2.99,181.38,181.36,123.1743]
[1753855913102,2.99,181.38,181.36,125.8643]
[1753855914408,1.73524617,181.39,181.37,8.2041]
[1753855914807,3.01,181.38,181.37,8.2041]
[1753855915410,4.74524617,181.42,181.38,2.69]
[1753855915610,3.01,181.4,181.39,120.33]
[1753855915810,7.01616631,181.4,181.39,120.33]
[1753855916306,7.01616631,181.4,181.39,125.8432]
[1753855918512,3.01,181.4,181.39,125.8432]
[1753855918811,3.01,181.44,181.41,2.69]
[1753855919009,7.01525816,181.43,181.42,120.31]
[1753855919812,7.01525816,181.43,181.42,127.55774617]
[1753855920515,7.01525816,181.43,181.42,124.86774617]
[1753855920917,7.01525816,181.43,181.42,123.1325]
[1753855921721,7.01525816,181.43,181.42,125.8225]
[1753855922018,3.01,181.43,181.42,125.8225]
[1753855922721,3.01,181.43,181.42,120.31]
[1753855923420,3.01,181.43,181.42,123.1326]
[1753855924520,3.01,181.43,181.42,125.8226]
[1753855928524,2.70795064,181.46,181.38,2.70795064]
[1753855928821,3.01,181.45,181.39,117.58]
[1753855929619,3.01,181.42,181.4,5.513]
[1753855929816,3.01,181.42,181.4,8.203]
[1753855930423,3.01,181.42,181.4,5.513]
[1753855931223,5.512,181.44,181.41,5.5128]
[1753855931923,3.01,181.43,181.41,8.2028]
[1753855932723,5.5118,181.45,181.41,8.2028]
[1753855932925,3.01,181.44,181.42,2.69]
[1753855933624,3.01,181.43,181.42,2.69]
[1753855934023,3.01,181.43,181.42,120.25]
[1753855937029,3.01,181.43,181.42,117.56]
[1753855938221,3.01,181.43,181.42,120.24]
[1753855939218,2.70795064,181.48,181.42,120.24]
[1753855939424,3.01,181.49,181.43,2.68]
[1753855940327,3.01,181.46,181.44,2.68]
[1753855940830,3.01,181.46,181.45,117.52]
[1753855941325,8.5213,181.46,181.45,117.52]
[1753855955438,1.73267955,181.48,181.43,1.73267955]
[1753855955650,3.04,181.45,181.44,117.46]
[1753855956756,3.04,181.45,181.44,120.15]
[1753855963461,3.04,181.45,181.44,119.19267955]
[1753855964660,8.5516,181.45,181.44,117.46]
[1753855964849,3.04,181.45,181.43,117.44]
[1753855965359,8.5518,181.45,181.43,117.44]
[1753855965554,3.04,181.44,181.43,120.13]
[1753855965754,3.04,181.44,181.43,121.86267955]
[1753855966056,3.04,181.44,181.43,119.17267955]
[1753855966261,3.04,181.44,181.43,1.73267955]
[1753855966456,8.552,181.44,181.4,2.69]
[1753855966758,3.04,181.43,181.41,117.44]
[1753855967061,8.5523,181.43,181.41,120.13]
[1753855967360,3.04,181.42,181.41,120.13]
[1753855968457,3.04,181.43,181.42,2.69]
[1753855969165,3.04,181.43,181.41,117.44]
[1753855969358,3.04,181.42,181.41,117.44]
[1753855970159,7.24527955,181.42,181.41,117.44]
[1753855970359,3.04,181.41,181.4,117.44]
[1753855970555,8.5529,181.41,181.4,117.44]
[1753855971465,3.25,181.37,181.34,1.73267955]
[1753855971666,3.25,181.37,181.36,117.44]
[1753855972465,10.49677955,181.37,181.36,117.44]
[1753855972864,5.5152,181.34,181.32,4.42267955]
[1753855973169,6.15016473,181.48,181.2,11.038]
[1753855973170,3.25,181.31,181.28,11.756441]
[1753855973360,1.73267955,181.3,181.28,2.69]
[1753855973567,3.25,181.29,181.28,2.69]
[1753855973867,1.73267955,181.3,181.28,3.2]
[1753855974065,1.73267955,181.32,181.29,3.2]
[1753855974264,1.73267955,181.32,181.3,3.2]
[1753855974569,5.5159,181.31,181.3,3.2]
[1753855975768,2.71228582,181.32,181.28,3.2]
[1753855975963,3.25,181.31,181.28,3.2]
[1753855976364,5.5164,181.3,181.28,3.2]
[1753855976663,2.71228582,181.3,181.27,117.44]
[1753855977065,3.25,181.28,181.27,117.44]
[1753855977768,8.7668,181.28,181.27,120.64]
[1753855978764,3.25,181.28,181.27,120.64]
[1753855979264,3.25,181.3,181.28,3.2]
[1753855980269,3.25,181.31,181.27,120.64]
[1753855980462,3.25,181.29,181.27,117.44]
[1753855981067,8.7668,181.29,181.27,120.64]
[1753855981266,3.25,181.28,181.27,120.64]
[1753855982768,5.5168,181.29,181.28,3.2]
[1753855983171,8.7668,181.29,181.28,3.2]
[1753855984565,3.25,181.31,181.28,3.2]
[1753855984771,2.71228582,181.32,181.28,3.2]
[1753855985074,3.25,181.3,181.28,3.2]
[1753855985666,3.25,181.29,181.28,3.2]
[1753855985871,3.25,181.29,181.27,120.64]
[1753855986072,8.7666,181.29,181.27,120.64]
[1753855986272,3.25,181.28,181.27,120.64]
[1753855990569,5.5166,181.29,181.27,117.44]
[1753855990874,3.25,181.29,181.28,3.2]
[1753855992064,5.516,181.31,181.28,3.2]
[1753855992269,3.25,181.3,181.28,3.2]
[1753855992575,8.7663,181.3,181.28,3.2]
[1753855993170,5.5163,181.3,181.28,3.2]
[1753855993371,3.25,181.29,181.28,3.2]
[1753856001082,3.25,181.29,181.28,8.7168]
[1753856001281,3.11,181.31,181.29,3.2]
[1753856001483,3.11,181.31,181.3,117.48]
[1753856001679,3.11,181.31,181.3,120.6]
[1753856002884,11.33758582,181.33,181.31,3.12]
[1753856003091,3.11,181.32,181.31,3.12]
[1753856003289,8.22758582,181.33,181.31,3.12]
[1753856003690,3.11,181.32,181.3,117.48]
[1753856003988,8.6256,181.32,181.3,117.48]
[1753856004388,3.11,181.31,181.3,117.48]
[1753856005292,8.6259,181.31,181.3,117.48]
[1753856007493,5.5159,181.31,181.29,3.12]
[1753856007695,3.11,181.3,181.29,3.12]
[1753856010993,3.11,181.33,181.3,3.12]
[1753856011189,3.11,181.34,181.32,3.12]
[1753856011383,3.11,181.34,181.32,8.6355]
[1753856011587,3.11,181.34,181.33,3.12]
[1753856011791,8.6246,181.36,181.33,3.12]
[1753856011990,3.11,181.35,181.33,3.12]
[1753856012293,3.11,181.34,181.33,3.12]
[1753856015497,3.11,181.34,181.33,8.6353]
[1753856015705,3.11,181.37,181.33,5.83228582]
[1753856015900,2.71228582,181.42,181.34,3.12]
[1753856016103,2.71228582,181.42,181.33,2.71228582]
[1753856016104,3.11,181.39,181.36,3.12]
[1753856016302,3.11,181.44,181.38,3.12]
[1753856016497,3.11,181.41,181.38,3.12]
[1753856016701,3.11,181.4,181.38,8.6335]
[1753856017002,3.11,181.4,181.39,3.12]
[1753856017195,3.11,181.4,181.39,8.6335]
[1753856017393,5.5124,181.43,181.39,8.6335]
[1753856017601,3.11,181.41,181.4,3.12]
[1753856018004,3.11,181.41,181.4,8.6332]
[1753856018599,3.11,181.41,181.4,3.12]
[1753856019608,7.71283583,181.47,181.41,5.5128]
[1753856019798,3.11,181.45,181.42,3.12]
[1753856020001,3.11,181.43,181.42,3.12]
[1753856020909,3.11,181.43,181.41,3.12]
[1753856021406,3.11,181.42,181.41,3.12]
[1753856022207,3.11,181.42,181.38,120.52]
[1753856022709,3.11,181.39,181.38,120.52]
[1753856024110,3.11,181.39,181.38,126.0338]
[1753856024410,3.11,181.39,181.38,3.12]
[1753856028212,3.11,181.39,181.38,8.6338]
[1753856029510,3.11,181.39,181.38,125.9938]
[1753856030314,3.11,181.39,181.38,120.48]
[1753856035910,3.11,181.39,181.38,125.9938]
[1753856036311,3.21,181.44,181.39,8.5532]
[1753856036621,3.21,181.44,181.41,3.04]
[1753856036918,3.21,181.44,181.39,5.5132]
[1753856037418,3.21,181.44,181.41,3.04]
[1753856037713,8.7222,181.44,181.42,3.04]
[1753856037911,3.21,181.43,181.42,3.04]
[1753856038319,8.7223,181.43,181.42,3.04]
[1753856038818,8.7223,181.43,181.41,120.38]
[1753856039113,5.5123,181.43,181.41,120.38]
[1753856039319,3.21,181.42,181.41,120.38]
[1753856040118,8.7226,181.42,181.41,120.38]
[1753856040320,5.5126,181.42,181.41,117.34]
[1753856040620,8.7226,181.42,181.41,117.34]
[1753856041918,8.7226,181.42,181.41,120.38]
[1753856044113,8.7226,181.42,181.41,117.34]
[1753856045819,8.7226,181.42,181.41,120.38]
[1753856046619,8.7226,181.42,181.41,3.04]
[1753856046821,3.21,181.39,181.38,117.3]
[1753856047620,3.21,181.39,181.38,120.34]
[1753856047814,3.21,181.43,181.38,117.3]
[1753856048014,3.21,181.43,181.39,3.04]
[1753856048215,3.21,181.43,181.38,117.3]
[1753856048216,5.5134,181.4,181.38,120.34]
[1753856048522,3.21,181.39,181.38,120.34]
[1753856048712,3.21,181.39,181.3,370.8]
[1753856048713,3.21,181.39,181.31,2.71228582]
[1753856048921,3.21,181.37,181.34,5.515]
[1753856049119,3.21,181.37,181.34,8.555]
[1753856049418,3.21,181.36,181.34,5.515]
[1753856050024,3.21,181.36,181.35,3.04]
[1753856051623,3.21,181.37,181.35,3.04]
[1753856052424,5.5138,181.38,181.35,3.04]
[1753856052626,8.7238,181.38,181.35,3.04]
[1753856052824,8.7238,181.38,181.36,117.3]
[1753856053025,8.7238,181.38,181.37,3.04]
[1753856053529,8.7238,181.38,181.36,117.3]
[1753856053727,5.5138,181.38,181.37,3.04]
[1753856054226,8.7238,181.38,181.37,3.04]
[1753856058430,3.21,181.4,181.37,3.04]
[1753856058618,2.71228582,181.41,181.37,3.04]
[1753856058824,3.21,181.39,181.37,3.04]
[1753856059120,3.21,181.38,181.37,3.04]
[1753856063227,2.71228582,181.41,181.37,3.04]
[1753856063228,5.5133,181.4,181.37,3.04]
[1753856063432,3.23,181.43,181.38,3.1]
[1753856063634,3.23,181.41,181.38,3.1]
[1753856063828,3.23,181.4,181.38,3.1]
[1753856064035,3.23,181.4,181.38,8.6138]
[1753856064332,3.23,181.4,181.39,3.1]
[1753856065434,8.7432,181.4,181.39,3.1]
[1753856066429,3.23,181.4,181.33,2.71228582]
[1753856066634,4.61640965,181.46,181.3,370.8]
[1753856066635,3.23,181.35,181.31,3.1]
[1753856066829,3.23,181.35,181.33,117.28]
[1753856067434,11.45738582,181.34,181.33,117.28]
[1753856067635,3.23,181.33,181.3,120.38]
[1753856068035,5.5156,181.32,181.3,117.28]
[1753856068231,3.23,181.31,181.3,120.38]
[1753856068834,3.23,181.31,181.3,125.8962]
[1753856069135,5.94228582,181.34,181.31,3.1]
[1753856069332,3.23,181.33,181.32,3.1]
[1753856071130,8.7453,181.33,181.32,3.1]
[1753856071737,8.7453,181.33,181.3,122.7961]
[1753856071941,3.23,181.32,181.31,3.1]
[1753856072139,5.5153,181.33,181.31,3.1]
[1753856072432,5.5156,181.32,181.3,117.28]
[1753856072635,3.23,181.31,181.3,117.28]
[1753856072838,3.23,181.31,181.3,120.38]
[1753856078140,8.7459,181.31,181.3,117.28]
[1753856080445,3.23,181.29,181.27,120.4]
[1753856080643,3.23,181.28,181.27,117.3]
[1753856080846,8.7468,181.28,181.27,117.3]
[1753856081043,2.71228582,181.28,181.2,370.66]
[1753856081348,3.23,181.27,181.24,3.1]
[1753856081642,3.23,181.26,181.25,3.1]
[1753856083847,3.23,181.26,181.24,3.1]
[1753856084036,3.23,181.26,181.21,117.3]
[1753856084236,5.5171,181.27,181.22,3.1]
[1753856084541,3.23,181.26,181.22,3.1]
[1753856084945,5.5169,181.28,181.22,3.1]
[1753856085143,3.23,181.31,181.25,3.1]
[1753856085342,3.23,181.31,181.27,3.1]
[1753856085647,3.23,181.31,181.29,5.5162]
[1753856085848,3.23,181.31,181.3,3.1]